fUST/lending_fUST_20250916
["ID","MTS","AMOUNT","RATE_DAILY","PERIOD"]
[385758539,1758021047702,-328.0,0.00022173,3]
[385758540,1758021047711,-160.0,0.00022173,3]
[385758541,1758021047720,-160.0,0.00022173,3]
[385758542,1758021047730,-369.90561817,0.00022184,2]
[385758543,1758021047739,-172.0,0.00022184,2]
[385758544,1758021047748,-480.0,0.00022191,3]
[385758545,1758021047757,-162.47360376,0.00022191,3]
[385758546,1758021047766,-480.0,0.00022191,3]
[385758547,1758021047776,-480.0,0.00022191,3]
[385758548,1758021047785,-480.0,0.00022191,3]
[385758549,1758021047794,-480.0,0.00022191,3]
[385758550,1758021047804,-480.0,0.00022191,3]
[385758551,1758021047813,-480.0,0.00022191,3]
[385758552,1758021047822,-480.0,0.00022191,3]
[385758553,1758021047831,-480.0,0.00022191,3]
[385758554,1758021047842,-480.0,0.00022191,3]
[385758555,1758021047851,-480.0,0.00022191,3]
[385758556,1758021047860,-480.0,0.00022191,3]
[385758557,1758021047870,-161.72846725,0.00022191,3]
[385758558,1758021047879,-330.98701261,0.00022191,3]
[385758559,1758021048177,-149.01298739,0.00022191,3]
[385758560,1758021048187,-480.0,0.00022191,3]
[385758561,1758021048196,-470.89037462,0.00022191,3]
[385758562,1758021048206,-480.0,0.00022191,3]
[385758563,1758021048215,-480.0,0.00022191,3]
[385758564,1758021048224,-480.0,0.00022191,3]
[385758565,1758021048233,-480.0,0.00022191,3]
[385758566,1758021048242,-480.0,0.00022191,3]
[385758567,1758021048252,-480.0,0.00022191,3]
[385758568,1758021048262,-480.0,0.00022191,3]
[385758569,1758021048271,-480.0,0.00022191,3]
[385758570,1758021048280,-480.0,0.00022191,3]
[385758571,1758021048290,-480.0,0.00022191,3]
[385758572,1758021048298,-567.61890693,0.00022191,3]
[385758573,1758021048308,-480.0,0.00022191,3]
[385758574,1758021048317,-288.133514,0.00022191,7]
[385758575,1758021048326,-480.0,0.00022191,3]
[385758576,1758021048335,-480.0,0.00022191,3]
[385758577,1758021048344,-480.0,0.00022191,3]
[385758578,1758021048353,-480.0,0.00022191,3]
[385758579,1758021048363,-480.0,0.00022191,3]
[385758580,1758021048372,-500.0,0.00022191,3]
[385758581,1758021048381,-480.0,0.00022191,3]
[385758582,1758021048390,-480.0,0.00022191,3]
[385758583,1758021048399,-480.0,0.00022191,3]
[385758584,1758021048408,-480.0,0.00022191,3]
[385758585,1758021048417,-480.0,0.00022191,3]
[385758586,1758021048427,-480.0,0.00022191,3]
[385758587,1758021048437,-480.0,0.00022191,3]
[385758588,1758021048446,-480.0,0.00022191,3]
[385758589,1758021048456,-480.0,0.00022191,3]
[385758590,1758021048464,-480.0,0.00022191,3]
[385758591,1758021048474,-524.74285819,0.00022191,3]
[385758592,1758021048483,-480.0,0.00022191,3]
[385758593,1758021048493,-566.36051351,0.00022191,3]
[385758594,1758021048502,-480.0,0.00022191,3]
[385758595,1758021048511,-480.0,0.00022191,3]
[385758596,1758021048521,-480.0,0.00022191,3]
[385758597,1758021048531,-514.15381237,0.00022191,3]
[385758598,1758021048540,-480.0,0.00022191,3]
[385758599,1758021048549,-480.0,0.00022191,3]
[385758600,1758021048558,-480.0,0.00022191,3]
[385758601,1758021048567,-480.0,0.00022191,3]
[385758602,1758021048578,-480.0,0.00022191,3]
[385758603,1758021048588,-480.0,0.00022191,3]
[385758604,1758021048598,-480.0,0.00022191,3]
[385758605,1758021048608,-480.0,0.00022191,3]
[385758606,1758021048626,-480.0,0.00022191,3]
[385758607,1758021048698,-480.0,0.00022191,3]
[385758608,1758021048715,-480.0,0.00022191,3]
[385758609,1758021048725,-480.0,0.00022191,3]
[385758610,1758021048735,-480.0,0.00022191,3]
[385758611,1758021048746,-480.0,0.00022191,3]
[385758612,1758021048755,-480.0,0.00022191,3]
[385758613,1758021048765,-480.0,0.00022191,3]
[385758614,1758021048774,-480.0,0.00022191,3]
[385758615,1758021048784,-480.0,0.00022191,3]
[385758616,1758021048793,-480.0,0.00022191,3]
[385758617,1758021048802,-480.0,0.00022191,3]
[385758618,1758021048812,-480.0,0.00022191,3]
[385758619,1758021048821,-480.0,0.00022191,3]
[385758620,1758021048831,-480.0,0.00022191,3]
[385758621,1758021048841,-480.0,0.00022191,3]
[385758622,1758021048850,-480.0,0.00022191,3]
[385758623,1758021048859,-480.0,0.00022191,3]
[385758624,1758021048869,-480.0,0.00022191,3]
[385758625,1758021048879,-480.0,0.00022191,3]
[385758626,1758021048888,-480.0,0.00022191,3]
[385758627,1758021048897,-480.0,0.00022191,3]
[385758628,1758021048906,-480.0,0.00022191,3]
[385758629,1758021048916,-480.0,0.00022191,3]
[385758630,1758021048925,-370.4128787,0.00022191,3]
[385758631,1758021048935,-480.0,0.00022191,3]
[385758632,1758021048944,-591.92155076,0.00022191,3]
[385758633,1758021048953,-480.0,0.00022191,3]
[385758634,1758021048962,-480.0,0.00022191,3]
[385758635,1758021048972,-480.0,0.00022191,3]
[385758636,1758021048981,-480.0,0.00022191,3]
[385758637,1758021048991,-480.0,0.00022191,3]
[385758638,1758021049000,-480.0,0.00022191,3]
[385758639,1758021049010,-175.9377189,0.00022191,3]
[385758640,1758021049020,-603.53,0.00022191,3]
[385758641,1758021049030,-480.0,0.00022191,3]
[385758642,1758021049039,-480.0,0.00022191,3]
[385758643,1758021049048,-480.0,0.00022191,3]
[385758644,1758021049057,-480.0,0.00022191,3]
[385758645,1758021049066,-480.0,0.00022191,3]
[385758646,1758021049075,-480.0,0.00022191,3]
[385758647,1758021049085,-480.0,0.00022191,3]
[385758648,1758021049095,-480.0,0.00022191,3]
[385758649,1758021049105,-480.0,0.00022191,3]
[385758650,1758021049114,-519.14,0.00022191,3]
[385758651,1758021049124,-480.0,0.00022191,3]
[385758652,1758021049133,-146.26482047,0.00022191,3]
[385758653,1758021094374,-177.19235215,0.00020994,2]
[385758656,1758021262235,1900.5686794,0.00020526,2]
[385758657,1758021286694,679.66723494,0.00020526,2]
[385758658,1758021294805,900.0,0.00020526,2]
[385758667,1758021601816,500.0,0.00030163,50]
[385758668,1758021602245,460.0,0.00030163,50]
[385758672,1758021748429,181.92042903,0.00030163,50]
[385758673,1758021897882,-1464497.88028854,0.00030187,20]
[385758674,1758021897906,-183821.50762899,0.00030187,20]
[385758675,1758021897930,-3351680.61208247,0.00030187,20]
[385758676,1758021906604,-3534152.98500352,0.00030187,20]
[385758677,1758021906631,-515.57445083,0.00030187,30]
[385758678,1758021906660,-495990.82982018,0.00030187,20]
[385758679,1758021906686,-969340.61072547,0.00030187,20]
[385758680,1758021910617,-2667662.15766731,0.00030187,20]
[385758681,1758021910645,-849714.06192615,0.00030187,20]
[385758682,1758021910672,-1482623.78040654,0.00030187,20]
[385758683,1758021913856,-1301435.72928116,0.00030187,20]
[385758684,1758021913882,-2365.49916618,0.00030187,30]
[385758685,1758021913907,-312.43244007,0.00030187,30]
[385758686,1758021913932,-247.17458461,0.00030187,30]
[385758687,1758021913956,-677.37199256,0.00030187,30]
[385758688,1758021913979,-436.59163092,0.00030187,30]
[385758689,1758021914003,-179.43267265,0.00030187,30]
[385758690,1758021914031,-362.60624546,0.00030187,30]
[385758691,1758021914054,-386.29235,0.00030187,31]
[385758692,1758021914080,-554838.1336092,0.00030187,20]
[385758693,1758021914107,-154290.01410557,0.00030187,20]
[385758694,1758021914135,-405757.18708039,0.00030187,20]
[385758695,1758021914166,-189679.77976496,0.00030187,20]
[385758696,1758021914212,-228594.48783904,0.00030187,20]
[385758697,1758021914258,-430824.47752851,0.00030187,20]
[385758698,1758021914287,-343707.47647565,0.00030187,20]
[385758699,1758021914422,-279939.63980667,0.00030187,20]
[385758700,1758021914450,-344328.55031616,0.00030187,20]
[385758701,1758021914477,-264813.45211154,0.00030187,20]
[385758702,1758021914503,-2000.0,0.00030187,30]
[385758703,1758021914530,-289791.18242721,0.00030187,20]
[385758704,1758021914555,-497.66841969,0.00030187,30]
[385758705,1758021914580,-213.07381801,0.00030187,30]
[385758706,1758021914607,-173654.18352238,0.00030187,20]
[385758707,1758021914632,-300.0,0.00030187,30]
[385758708,1758021914660,-30367.56281141,0.00030187,20]
[385758710,1758021973634,377.0959632,0.00027973,30]
[385758711,1758021973671,315.0233361,0.00027973,30]
[385758713,1758022028834,-168.300064,0.00020591,2]
[385758714,1758022031384,-293.90784349,0.00020591,2]
[385758715,1758022033258,-191.14996631,0.00020591,2]
[385758716,1758022040148,-171.712949,0.0002065,2]
[385758717,1758022040175,-229.21496163,0.0002099,2]
[385758718,1758022040204,-784.59461867,0.00021572,2]
[385758731,1758022118846,-300.0,0.00022341,20]
[385758732,1758022118873,-300.0,0.00022341,20]
[385758733,1758022118900,-300.0,0.00022341,20]
[385758734,1758022118926,-300.0,0.00022341,20]
[385758735,1758022118952,-300.0,0.00022341,20]
[385758736,1758022118977,-300.0,0.00022341,20]
[385758737,1758022119003,-300.0,0.00022341,20]
[385758738,1758022119028,-300.0,0.00022341,20]
[385758739,1758022119053,-300.0,0.00022341,20]
[385758740,1758022119078,-300.0,0.00022341,20]
[385758741,1758022119103,-300.0,0.00022341,20]
[385758742,1758022119127,-300.0,0.00022341,20]
[385758743,1758022119153,-300.0,0.00022341,20]
[385758744,1758022119178,-300.0,0.00022341,20]
[385758745,1758022119203,-300.0,0.00022341,20]
[385758746,1758022119275,-720.0,0.00024114,20]
[385758747,1758022119329,-864.0,0.00026525,20]
[385758748,1758022119365,-209.0,0.0002804,30]
[385758749,1758022119391,-159.7597994,0.00028219,30]
[385758750,1758022119417,-209.0,0.0002841,30]
[385758751,1758022119442,-155.56,0.00028454,30]
[385758752,1758022119465,-159.7597994,0.00028521,30]
[385758753,1758022119490,-158.97149,0.00028521,20]
[385758754,1758022119514,-193.4354642,0.00028765,120]
[385758755,1758022119537,-209.0,0.0002877,30]
[385758756,1758022119561,-159.7597994,0.00028795,30]
[385758757,1758022119586,-209.0,0.0002913,30]
[385758758,1758022119612,-1000.0,0.00029178,20]
[385758759,1758022119636,-182.63958463,0.0002931,120]
[385758760,1758022119662,-155.56,0.00029332,30]
[385758761,1758022119686,-500.0,0.0002941,20]
[385758762,1758022119710,-200.0,0.00029475,120]
[385758763,1758022119734,-209.0,0.0002949,30]
[385758764,1758022119758,-1794.10692145,0.000295,120]
[385758765,1758022119784,-200.0,0.00029656,120]
[385758766,1758022119808,-201.0,0.000297,25]
[385758767,1758022119832,-158.97149,0.000297,30]
[385758768,1758022119857,-405.94601652,0.0002976,20]
[385758769,1758022119882,-173408.60378151,0.0002985,60]
[385758770,1758022119906,-209.0,0.0002985,30]
[385758771,1758022119929,-597.95088803,0.00029998,120]
[385758772,1758022120053,-511.0,0.0003,120]
[385758774,1758022120080,-1000.0,0.0003,120]
[385758775,1758022120106,-316.76015977,0.0003,60]
[385758776,1758022120130,-1117.66727379,0.0003,50]
[385758777,1758022120155,-364.53361138,0.0003,50]
[385758778,1758022120179,-313.0,0.0003,120]
[385758779,1758022120202,-2000.0,0.0003,60]
[385758780,1758022120226,-169.19,0.0003,30]
[385758781,1758022120251,-158.97149,0.00030086,50]
[385758782,1758022120276,-200.0,0.00030111,120]
[385758783,1758022120300,-155.56,0.00030137,30]
[385758784,1758022120326,-156.27470826,0.0003015,120]
[385758785,1758022120349,-409.0,0.00030167,50]
[385758786,1758022120381,-209.0,0.0003021,30]
[385758787,1758022120407,-200.0,0.00030211,120]
[385758788,1758022120431,-200.0,0.00030211,120]
[385758789,1758022120455,-200.0,0.00030211,120]
[385758790,1758022120477,-200.0,0.00030211,120]
[385758791,1758022120501,-2000.0,0.00030255,20]
[385758792,1758022120526,-200.0,0.00030276,120]
[385758793,1758022120550,-200.0,0.00030373,120]
[385758794,1758022120574,-155.0,0.000304,120]
[385758795,1758022120598,-200.0,0.0003075,120]
[385758796,1758022120622,-622.88592826,0.0003079,30]
[385758797,1758022120646,-1023.85,0.00030806,50]
[385758798,1758022120671,-200.0,0.00030926,120]
[385758799,1758022120694,-1000.0,0.00031,120]
[385758800,1758022120719,-2829.0584072,0.00031,120]
[385758801,1758022120744,-160.0,0.00031,30]
[385758802,1758022120768,-160.0,0.00031,120]
[385758803,1758022120793,-847.61663983,0.00031,120]
[385758804,1758022120817,-160.0,0.00031,30]
[385758805,1758022120841,-417.15472785,0.00031,30]
[385758806,1758022120864,-160.0,0.00031,120]
[385758807,1758022120888,-417.15472785,0.00031,120]
[385758808,1758022120911,-531.43424302,0.00031,30]
[385758809,1758022120935,-531.43424302,0.00031,120]
[385758810,1758022120958,-217.86301978,0.00031,30]
[385758811,1758022120982,-217.86301978,0.00031,120]
[385758812,1758022121006,-160.0,0.00031,30]
[385758813,1758022121030,-160.0,0.00031,120]
[385758814,1758022121054,-233.29513139,0.00031,30]
[385758815,1758022121078,-233.29513139,0.00031,120]
[385758816,1758022121103,-200.0,0.00031108,120]
[385758817,1758022121128,-1086.82372,0.000312,120]
[385758818,1758022121153,-274.62275,0.000312,120]
[385758819,1758022121176,-313.4559726,0.00031268,30]
[385758820,1758022121200,-200.0,0.0003155,120]
[385758821,1758022121230,-300.0,0.00032,120]
[385758822,1758022121254,-1000.0,0.00032,120]
[385758823,1758022121278,-811.9,0.00032,120]
[385758824,1758022121302,-500.0,0.00032,120]
[385758825,1758022121330,-1000.0,0.00032096,20]
[385758826,1758022121355,-244.0,0.00032096,20]
[385758827,1758022121379,-200.0,0.00032123,120]
[385758828,1758022121403,-200.0,0.00032206,120]
[385758829,1758022121428,-378.81427067,0.000325,120]
[385758830,1758022121452,-155.0,0.000325,120]
[385758831,1758022121477,-1086.82372,0.000326,120]
[385758832,1758022121499,-274.62275,0.000326,120]
[385758833,1758022121523,-520.68,0.000328,60]
[385758834,1758022121552,-209.39628,0.0003288,30]
[385758835,1758022121578,-209.39,0.0003288,30]
[385758836,1758022121603,-211.69,0.0003288,30]
[385758837,1758022121628,-164.64885275,0.0003288,30]
[385758838,1758022121652,-164.64885275,0.0003288,30]
[385758839,1758022121675,-164.64,0.0003288,30]
[385758840,1758022121700,-495.7,0.00032957,60]
[385758841,1758022121726,-495.7,0.00033057,60]
[385758842,1758022121840,-495.7,0.00033157,60]
[385758843,1758022121866,-262.41272966,0.000332,117]
[385758844,1758022121891,-262.41272965,0.000332,117]
[385758845,1758022121917,-262.41272965,0.000332,117]
[385758846,1758022121942,-262.41272965,0.000332,117]
[385758847,1758022121967,-262.41272965,0.000332,117]
[385758848,1758022121992,-200.0,0.00033253,120]
[385758849,1758022122017,-495.7,0.00033257,60]
[385758850,1758022122042,-200.0,0.000333,120]
[385758851,1758022122067,-495.7,0.00033357,60]
[385758852,1758022122092,-495.7,0.00033457,60]
[385758853,1758022122114,-1000.0,0.000335,120]
[385758854,1758022122138,-495.7,0.00033557,60]
[385758855,1758022122162,-495.7,0.00033657,60]
[385758856,1758022122186,-7878.81191033,0.00033717,41]
[385758857,1758022122211,-495.7,0.00033757,60]
[385758858,1758022122236,-5136.53645275,0.00033812,41]
[385758859,1758022122259,-5000.0,0.00033812,44]
[385758860,1758022122282,-5000.0,0.00033812,44]
[385758861,1758022122305,-5000.0,0.00033812,40]
[385758862,1758022122332,-5000.0,0.00033812,42]
[385758863,1758022122356,-495.7,0.00033857,60]
[385758864,1758022122380,-232.69445,0.000339,120]
[385758865,1758022122405,-495.7,0.00033957,60]
[385758866,1758022122430,-1086.82372,0.00034,120]
[385758867,1758022122455,-300.0,0.00034,120]
[385758868,1758022122479,-274.62275,0.00034,120]
[385758869,1758022122504,-495.7,0.00034057,60]
[385758870,1758022122529,-495.7,0.00034157,60]
[385758871,1758022122555,-1652.35,0.00034246,120]
[385758872,1758022122581,-495.7,0.00034257,60]
[385758873,1758022122606,-495.7,0.00034357,60]
[385758874,1758022122633,-495.7,0.00034457,60]
[385758875,1758022122658,-1000.0,0.000345,120]
[385758876,1758022122682,-495.7,0.00034557,60]
[385758877,1758022122707,-155.0,0.000346,120]
[385758878,1758022122733,-495.7,0.00034657,60]
[385758879,1758022122758,-495.7,0.00034757,60]
[385758880,1758022122783,-495.7,0.00034857,60]
[385758881,1758022122808,-495.7,0.00034957,60]
[385758882,1758022122834,-2226.19468634,0.00035,20]
[385758883,1758022122859,-1401.55268081,0.00035,120]
[385758884,1758022122884,-173.82916496,0.00035,120]
[385758885,1758022122908,-167.16891322,0.00035,120]
[385758886,1758022122931,-213.00885126,0.00035,30]
[385758887,1758022122955,-200.0,0.00035,120]
[385758888,1758022122978,-500.0,0.00035,120]
[385758889,1758022123001,-500.0,0.00035,120]
[385758890,1758022123025,-500.0,0.00035,120]
[385758891,1758022123048,-500.0,0.00035,120]
[385758892,1758022123073,-500.0,0.00035,120]
[385758893,1758022123097,-500.0,0.00035,120]
[385758894,1758022123122,-205.72,0.00035,69]
[385758895,1758022123147,-495.7,0.00035057,60]
[385758896,1758022123172,-1295.57,0.00035112,30]
[385758897,1758022123197,-495.7,0.00035157,60]
[385758898,1758022123221,-495.7,0.00035257,60]
[385758899,1758022123249,-1000.0,0.00035305,20]
[385758900,1758022123276,-492.0,0.00035305,20]
[385758901,1758022123302,-495.7,0.00035357,60]
[385758902,1758022123329,-1086.82372,0.000354,120]
[385758903,1758022123354,-274.62275,0.000354,120]
[385758904,1758022123378,-495.7,0.00035457,60]
[385758905,1758022123404,-200.0,0.00035459,120]
[385758906,1758022123429,-3000.0,0.000355,120]
[385758907,1758022123455,-1000.0,0.000355,120]
[385758908,1758022123481,-495.7,0.00035557,60]
[385758909,1758022123506,-495.7,0.00035657,60]
[385758910,1758022123532,-495.7,0.00035757,60]
[385758911,1758022123558,-495.7,0.00035857,60]
[385758912,1758022123594,-200.0,0.00035865,120]
[385758913,1758022123620,-495.7,0.00035957,60]
[385758914,1758022123646,-300.0,0.00036,120]
[385758915,1758022123756,-200.0,0.00036055,120]
[385758916,1758022123787,-495.7,0.00036057,60]
[385758917,1758022123812,-495.7,0.00036157,60]
[385758918,1758022123837,-397.6364161,0.00036224,30]
[385758919,1758022123861,-495.7,0.00036257,60]
[385758920,1758022123888,-495.7,0.00036357,60]
[385758921,1758022123913,-495.7,0.00036457,60]
[385758922,1758022123939,-222.79244898,0.000365,120]
[385758923,1758022123965,-1000.0,0.000365,120]
[385758924,1758022123989,-495.7,0.00036557,60]
[385758925,1758022124013,-200.0,0.0003658,120]
[385758926,1758022124037,-495.7,0.00036657,60]
[385758927,1758022124061,-155.0,0.000367,120]
[385758928,1758022124087,-495.7,0.00036757,60]
[385758929,1758022124111,-1086.82372,0.000368,120]
[385758930,1758022124135,-274.62275,0.000368,120]
[385758931,1758022124160,-495.7,0.00036857,60]
[385758932,1758022124185,-3103.95956342,0.00036896,60]
[385758933,1758022124212,-495.7,0.00036957,60]
[385758934,1758022124236,-1652.35,0.00036986,120]
[385758935,1758022124260,-352.34680592,0.00037,120]
[385758936,1758022124284,-495.7,0.00037057,60]
[385758937,1758022124308,-200.0,0.0003711,120]
[385758938,1758022124335,-495.7,0.00037157,60]
[385758939,1758022124359,-200.0,0.00037178,120]
[385758940,1758022124384,-495.7,0.00037257,60]
[385758941,1758022124408,-496.56034329,0.00037357,60]
[385758942,1758022124433,-157.8,0.000375,112]
[385758943,1758022124457,-1000.0,0.000375,120]
[385758944,1758022124482,-200.0,0.00037513,120]
[385758945,1758022124507,-200.0,0.00037515,120]
[385758946,1758022124534,-200.0,0.00037764,120]
[385758947,1758022124566,-200.0,0.00037764,120]
[385758948,1758022124593,-200.0,0.00037764,120]
[385758949,1758022124619,-200.0,0.00037764,120]
[385758950,1758022124644,-200.0,0.00037764,120]
[385758951,1758022124672,-223.90210194,0.00037764,120]
[385758952,1758022124712,-300.0,0.00038,120]
[385758953,1758022124743,-3060.03878292,0.00038,30]
[385758954,1758022124777,-200.0,0.00038191,120]
[385758955,1758022124810,-1086.82376,0.000382,120]
[385758956,1758022124845,-2031.12240219,0.000382,120]
[385758957,1758022124876,-274.62282,0.000382,120]
[385758958,1758022124908,-200.0,0.00038202,120]
[385758959,1758022124937,-1000.0,0.000385,120]
[385758960,1758022124969,-200.0,0.00038617,120]
[385758961,1758022125001,-200.0,0.00038671,120]
[385758962,1758022125036,-155.0,0.000388,120]
[385758963,1758022125069,-1000.0,0.00038836,30]
[385758964,1758022125100,-791.0,0.00038836,30]
[385758965,1758022125136,-166.36647329,0.0003888,30]
[385758966,1758022125167,-200.0,0.000389,120]
[385758967,1758022125198,-3317.49400385,0.000389,120]
[385758968,1758022125226,-152.66107111,0.00039,120]
[385758969,1758022125256,-200.0,0.0003932,120]
[385758970,1758022125285,-1000000.0,0.0003944,30]
[385758971,1758022125313,-1000.0,0.000395,120]
[385758972,1758022125345,-366.17,0.000396,120]
[385758973,1758022125374,-1652.35,0.00039726,120]
[385758974,1758022125402,-421.28030889,0.000398,120]
[385758976,1758022125433,-80079.67282303,0.000399,120]
[385758979,1758022125462,-1503.17,0.0003999,30]
[385758981,1758022125491,-253.02887755,0.00039998,31]
[385758984,1758022125520,-174.61919141,0.00039998,31]
[385758986,1758022125549,-151.0,0.00039998,31]
[385758988,1758022125578,-151.0,0.00039998,31]
[385758989,1758022125611,-500.0,0.00039998,31]
[385758990,1758022125642,-250.0,0.00039998,31]
[385758991,1758022125672,-151.0,0.00039998,31]
[385758992,1758022125701,-20006.03981059,0.00039998,31]
[385758993,1758022125732,-151.53599988,0.00039998,31]
[385758994,1758022125761,-500.0,0.00039998,31]
[385758995,1758022125917,-250.0,0.00039999,30]
[385758996,1758022125944,-168.3888056,0.00039999,30]
[385758997,1758022125969,-151.0,0.00039999,30]
[385758998,1758022125994,-151.0,0.00039999,30]
[385758999,1758022126020,-500.0,0.00039999,30]
[385759000,1758022126045,-250.0,0.00039999,30]
[385759001,1758022126070,-151.0,0.00039999,30]
[385759002,1758022126095,-19292.2273969,0.00039999,30]
[385759003,1758022126120,-151.0,0.00039999,30]
[385759004,1758022126145,-500.0,0.00039999,30]
[385759005,1758022126169,-314.58981448,0.0004,30]
[385759006,1758022126195,-300.0,0.0004,120]
[385759007,1758022126219,-1118.87135325,0.0004,30]
[385759008,1758022126245,-5000.0,0.0004,100]
[385759009,1758022126269,-80000.0,0.0004,30]
[385759010,1758022126294,-2532.48702549,0.0004,120]
[385759011,1758022126318,-151.8678105,0.0004,120]
[385759012,1758022126348,-2320.43902942,0.0004,120]
[385759013,1758022126375,-531.43424302,0.0004,120]
[385759014,1758022126399,-217.86301978,0.0004,120]
[385759015,1758022126425,-160.0,0.0004,120]
[385759016,1758022126451,-394.01826973,0.00040193,120]
[385759017,1758022126478,-1000000.0,0.0004044,30]
[385759018,1758022126503,-1000.0,0.000405,120]
[385759019,1758022126529,-200.0,0.00040841,120]
[385759020,1758022126554,-200.0,0.00040893,120]
[385759021,1758022126580,-155.0,0.00041,120]
[385759022,1758022126606,-219.1,0.00041041,120]
[385759023,1758022126634,-219.1,0.00041041,120]
[385759024,1758022126662,-219.1,0.00041041,120]
[385759025,1758022126688,-219.1,0.00041041,120]
[385759026,1758022126712,-1889.47,0.00041096,120]
[385759027,1758022126738,-200.0,0.00041144,120]
[385759028,1758022126762,-1900.0,0.00041171,60]
[385759029,1758022126787,-200.0,0.00041357,120]
[385759030,1758022126810,-1000.0,0.000415,120]
[385759031,1758022126834,-300.0,0.00042,120]
[385759032,1758022126860,-10000.0,0.00042,120]
[385759033,1758022126887,-1406.15108764,0.00042267,60]
[385759034,1758022126911,-1779.77818416,0.000424,120]
[385759035,1758022126937,-1000000.0,0.0004244,30]
[385759036,1758022126963,-1652.35,0.00042465,120]
[385759037,1758022126987,-5000.0,0.000425,110]
[385759038,1758022127012,-1000.0,0.000425,120]
[385759039,1758022127039,-1000.0,0.00042719,30]
[385759040,1758022127067,-1000.0,0.00042719,30]
[385759041,1758022127091,-1000.0,0.00043,30]
[385759042,1758022127115,-284.57567031,0.00043,120]
[385759043,1758022127139,-2031.25,0.00043,30]
[385759044,1758022127165,-155.0,0.000431,120]
[385759045,1758022127188,-1000.0,0.000435,120]
[385759046,1758022127213,-250.0,0.00043604,60]
[385759047,1758022127237,-162.380719,0.00043604,60]
[385759048,1758022127261,-151.0,0.00043604,60]
[385759049,1758022127285,-151.0,0.00043604,60]
[385759050,1758022127310,-500.0,0.00043604,60]
[385759051,1758022127336,-250.0,0.00043604,60]
[385759052,1758022127359,-151.0,0.00043604,60]
[385759053,1758022127385,-18603.8837,0.00043604,60]
[385759054,1758022127410,-151.0,0.00043604,60]
[385759055,1758022127435,-500.0,0.00043604,60]
[385759056,1758022127458,-500.0,0.0004374,60]
[385759057,1758022127483,-250.0,0.00043799,90]
[385759058,1758022127507,-151.0,0.00043799,90]
[385759059,1758022127531,-156.587,0.00043799,90]
[385759060,1758022127557,-151.0,0.00043799,90]
[385759061,1758022127583,-500.0,0.00043799,90]
[385759062,1758022127609,-250.0,0.00043799,90]
[385759063,1758022127635,-151.0,0.00043799,90]
[385759064,1758022127660,-17940.1,0.00043799,90]
[385759065,1758022127685,-181.75576661,0.00043799,90]
[385759066,1758022127710,-151.0,0.00043799,90]
[385759067,1758022127735,-500.0,0.00043799,90]
[385759068,1758022127761,-916.0,0.000438,90]
[385759069,1758022127788,-1000.0,0.000438,90]
[385759070,1758022127819,-250.0,0.00043834,120]
[385759071,1758022127843,-151.0,0.00043834,120]
[385759072,1758022127867,-151.0,0.00043834,120]
[385759073,1758022127892,-151.0,0.00043834,120]
[385759074,1758022127918,-250.0,0.00043834,120]